bitfinex-derivatives/quotes_SOLF0:USTF0_20240920
["timestamp","ask_amount","ask_price","bid_price","bid_amount"]
[1726805593474,32.54330261,146.08,145.96,26.32]
[1726805593681,3.4227,146.06,146.02,3.4236]
[1726805593883,26.32,146.06,145.93,26.32]
[1726805594383,3.4232,146.04,146.0,3.424]
[1726805594888,3.4232,146.04,145.93,26.32]
[1726805595289,32.54330261,146.08,145.96,26.32]
[1726805595586,32.54330261,146.08,146.02,3.4234]
[1726805596087,32.54330261,146.08,145.96,26.32]
[1726805596483,3.4227,146.06,145.96,26.32]
[1726805596686,3.4227,146.06,146.02,3.4235]
[1726805597182,32.54330261,146.08,146.02,3.4235]
[1726805597687,3.423,146.05,146.01,3.4238]
[1726805597988,3.423,146.05,145.96,26.32]
[1726805598183,3.423,146.05,146.02,3.4235]
[1726805598387,3.4228,146.06,146.02,3.4235]
[1726805598577,32.54330261,146.08,145.98,26.32]
[1726805598783,32.54330261,146.08,146.04,3.4229]
[1726805599183,32.54330261,146.08,145.98,26.32]
[1726805599391,3.4227,146.06,145.98,26.32]
[1726805599888,3.4227,146.06,146.03,3.4233]
[1726805600581,3.4225,146.07,145.98,26.32]
[1726805600878,29.71730261,146.08,145.98,26.32]
[1726805601185,29.71730261,146.08,145.93,10.22184943]
[1726805601186,2.692,146.14,146.04,26.32]
[1726805601681,6.07478035,146.14,146.02,26.32]
[1726805601882,29.012,146.14,146.02,26.32]
[1726805602081,26.32,146.11,146.0,26.32]
[1726805602590,3.4218,146.1,146.0,26.32]
[1726805602793,6.08848136,146.14,146.02,26.32]
[1726805603679,6.08848136,146.14,146.05,26.32]
[1726805603987,3.367129,146.15,146.05,26.32]
[1726805604190,3.4207,146.15,146.05,26.32]
[1726805604487,3.47567979,146.15,146.05,26.32]
[1726805604685,26.32,146.17,146.05,26.32]
[1726805604883,3.4212,146.13,146.05,26.32]
[1726805605083,6.84619993,146.13,146.09,3.4218]
[1726805605282,6.84619993,146.13,146.05,26.32]
[1726805606185,6.84619993,146.13,146.09,3.4218]
[1726805606380,1.4306,146.18,146.05,26.32]
[1726805606579,3.41995405,146.17,146.07,26.32]
[1726805606984,2.7735,146.21,146.1,26.32]
[1726805607185,26.32,146.22,146.1,26.32]
[1726805607484,10.32008301,146.28,146.07,29.7844535]
[1726805607485,26.32,146.26,146.14,26.32]
[1726805608291,3.419,146.22,146.18,3.4197]
[1726805609090,3.4194,146.2,146.16,3.4201]
[1726805609290,26.32,146.26,146.12,26.32]
[1726805609586,26.32,146.22,146.12,26.32]
[1726805610187,26.32,146.22,146.1,26.32]
[1726805610188,3.4198,146.19,146.1,26.32]
[1726805610591,3.49324413,146.2,146.1,26.32]
[1726805610791,26.32,146.22,146.1,26.32]
[1726805611090,4.1014,146.27,146.1,26.32]
[1726805611395,3.4194,146.21,146.12,26.32]
[1726805611789,26.32,146.21,146.09,26.32]
[1726805611990,3.4197,146.19,146.09,26.32]
[1726805612298,3.48913845,146.19,146.09,26.32]
[1726805612795,1.3451,146.2,146.09,26.32]
[1726805612996,8.24234521,146.2,146.09,26.32]
[1726805613195,1.3451,146.2,146.09,26.32]
[1726805613392,3.4197,146.19,146.09,26.32]
[1726805613796,4.76798993,146.2,146.09,26.32]
[1726805613997,3.4202,146.17,146.13,3.4208]
[1726805614795,3.4205,146.16,146.12,3.4212]
[1726805614997,26.32,146.19,146.07,26.32]
[1726805615195,3.4206,146.15,146.11,3.4213]
[1726805615895,27.7451,146.19,146.07,26.32]
[1726805616493,27.7451,146.19,146.1,3.4217]
[1726805616494,3.4208,146.14,146.1,3.4217]
[1726805616802,26.32,146.18,146.05,26.32]
[1726805617091,26.32,146.15,146.05,26.32]
[1726805617493,1.4251,146.19,146.07,26.32]
[1726805617995,26.32,146.17,146.07,26.32]
[1726805618197,3.4208,146.15,146.07,26.32]
[1726805618590,26.32,146.17,146.07,26.32]
[1726805618896,3.4208,146.14,146.07,26.32]
[1726805619100,26.32,146.17,146.07,26.32]
[1726805619592,26.32,146.17,146.05,26.32]
[1726805620598,3.4211,146.13,146.1,3.4217]
[1726805620798,3.4211,146.13,146.05,26.32]
[1726805620999,3.4209,146.14,146.1,3.4217]
[1726805621392,3.4209,146.14,146.05,26.32]
[1726805621588,27.7451,146.19,146.07,26.32]
[1726805621793,27.7451,146.19,146.09,26.32]
[1726805622092,4.8448,146.19,146.15,3.4204]
[1726805622291,26.32,146.24,146.13,26.32]
[1726805622498,26.32,146.26,146.13,26.32]
[1726805622695,3.42164725,146.26,146.13,26.32]
[1726805622891,30.4574,146.27,146.13,26.32]
[1726805623400,3.4189,146.23,146.19,3.4195]
[1726805624299,3.4185,146.24,146.2,3.4194]
[1726805624506,7.6268162,146.27,146.18,26.32]
[1726805624898,3.4182,146.26,146.21,3.419]
[1726805625202,3.4182,146.26,146.18,26.32]
[1726805625398,7.6268162,146.27,146.16,26.32]
[1726805625598,3.4184,146.25,146.16,26.32]
[1726805626204,3.4184,146.25,146.21,3.419]
[1726805626599,3.4185,146.24,146.16,26.32]
[1726805626799,3.4185,146.24,146.21,3.4191]
[1726805627411,3.4183,146.25,146.21,3.4191]
[1726805627808,3.4181,146.26,146.22,3.4189]
[1726805628101,7.6268162,146.27,146.16,26.32]
[1726805628302,3.4174,146.29,146.25,3.4182]
[1726805628511,26.32,146.32,146.2,26.32]
[1726805628899,3.4172,146.3,146.25,3.4181]
[1726805629099,3.39228576,146.29,146.2,26.32]
[1726805629500,26.32,146.32,146.2,26.32]
[1726805629999,26.32,146.3,146.18,26.32]
[1726805630202,4.1422,146.33,146.18,26.32]
[1726805630511,3.4172,146.3,146.2,26.32]
[1726805630704,30.4622,146.33,146.2,26.32]
[1726805631100,26.32,146.31,146.2,26.32]
[1726805631705,3.4175,146.29,146.2,26.32]
[1726805632012,3.49499866,146.29,146.2,26.32]
[1726805632313,3.4176,146.28,146.24,3.4183]
[1726805632811,6.83168434,146.29,146.25,3.4181]
[1726805633110,3.4174,146.29,146.25,3.4181]
[1726805633510,26.32,146.32,146.2,26.32]
[1726805633906,3.4172,146.3,146.26,3.418]
[1726805634107,26.32,146.32,146.2,26.32]
[1726805634504,4.1422,146.33,146.2,26.32]
[1726805634710,26.32,146.32,146.2,26.32]
[1726805635111,3.4174,146.29,146.26,3.418]
[1726805635517,26.32,146.32,146.28,3.4175]
[1726805635815,2.6871,146.33,146.25,26.32]
[1726805636033,2.6871,146.33,146.23,26.32]
[1726805636518,2.6871,146.33,146.26,26.32]
[1726805636714,2.6871,146.33,146.23,26.32]
[1726805637210,6.1037,146.33,146.29,3.4172]
[1726805637718,6.1037,146.33,146.23,26.32]
[1726805637921,6.1037,146.33,146.29,3.4171]
[1726805640310,2.6871,146.33,146.28,3.4175]
[1726805640916,3.417,146.31,146.27,3.4177]
[1726805641116,26.32,146.32,146.21,26.32]
[1726805641716,3.4171,146.3,146.21,26.32]
[1726805642321,2.6871,146.33,146.23,26.32]
[1726805642716,3.4168,146.32,146.29,3.4172]
[1726805643616,3.417,146.31,146.23,26.32]
[1726805643813,2.6871,146.33,146.23,26.32]
[1726805644018,26.32,146.32,146.21,26.32]
[1726805644220,3.4173,146.29,146.26,3.4179]
[1726805644424,26.32,146.32,146.21,26.32]
[1726805644922,3.4172,146.3,146.21,26.32]
[1726805645519,3.4173,146.29,146.21,26.32]
[1726805646120,3.4176,146.28,146.21,26.32]
[1726805646330,3.45734819,146.29,146.21,26.32]
[1726805646623,3.4179,146.27,146.18,26.32]
[1726805646820,3.4179,146.27,146.24,3.4183]
[1726805647318,6.78327562,146.27,146.24,3.4183]
[1726805648628,3.36537562,146.27,146.25,3.4182]
[1726805648832,3.4176,146.28,146.25,3.4182]
[1726805649126,3.4182,146.26,146.18,26.32]
[1726805649321,3.35079013,146.27,146.17,136.78]
[1726805649528,26.32,146.29,146.17,136.78]
[1726805649721,3.4181,146.26,146.23,3.4185]
[1726805650018,29.79731247,146.29,146.23,3.4185]
[1726805650214,3.4182,146.26,146.23,3.4185]
[1726805650621,29.79731247,146.29,146.16,26.32]
[1726805650818,26.32,146.27,146.16,26.32]
[1726805651031,26.32,146.27,146.13,6.8419]
[1726805651032,26.32,146.24,146.13,26.32]
[1726805651325,26.32,146.24,146.11,136.78]
[1726805651326,26.32,146.23,146.11,163.1]
[1726805651722,26.32,146.23,146.14,3.4207]
[1726805651925,3.42,146.18,146.11,163.1]
[1726805652122,3.42,146.18,146.15,3.4206]
[1726805652325,29.66953839,146.23,146.15,3.4206]
[1726805652524,29.66953839,146.23,146.11,163.1]
[1726805653030,3.4197,146.19,146.15,3.4204]
[1726805653528,29.66953839,146.23,146.11,163.1]
[1726805653829,3.34953839,146.23,146.13,26.32]
[1726805654029,29.0682,146.26,146.13,26.32]
[1726805654425,3.4189,146.23,146.19,3.4195]
[1726805656338,3.4189,146.23,146.18,3.4198]
[1726805656631,3.4189,146.23,146.13,26.32]
[1726805656831,3.4189,146.22,146.19,3.4195]
[1726805657327,26.32,146.25,146.19,3.4195]
[1726805657532,3.4188,146.23,146.19,3.4195]
[1726805658129,3.419,146.22,146.13,26.32]
[1726805658424,26.32,146.23,146.07,3.47135223]
[1726805658633,26.32,146.21,146.04,136.8]
[1726805658831,6.08953242,146.26,146.07,26.32]
[1726805659029,26.32,146.19,146.07,26.32]
[1726805659229,1.3696,146.2,146.07,26.32]
[1726805659437,2.7262,146.18,146.07,26.32]
[1726805659631,6.07151656,146.18,146.07,26.32]
[1726805659835,2.7262,146.18,146.07,26.32]
[1726805660333,3.4205,146.16,146.12,3.4212]
[1726805661035,3.47400896,146.15,146.12,3.4212]
[1726805661335,2.7262,146.18,146.05,26.32]
[1726805661336,26.32,146.17,146.05,26.32]
[1726805661732,3.421,146.14,146.09,3.4218]
[1726805662237,3.421,146.14,146.05,26.32]
[1726805662439,3.421,146.14,146.09,3.4218]
[1726805663337,3.4211,146.13,146.09,3.4218]
[1726805663541,26.32,146.16,146.08,3.4222]
[1726805664042,6.23409005,146.18,146.08,3.4222]
[1726805664341,26.32,146.15,146.07,3.4224]
[1726805664938,3.4214,146.12,146.07,3.4224]
[1726805665437,26.32,146.15,146.07,3.4224]
[1726805665637,6.23409005,146.18,146.07,3.4224]
[1726805665833,26.32,146.14,146.07,3.4224]
[1726805666040,1.4102,146.13,146.07,3.4224]
[1726805666937,3.4216,146.11,146.07,3.4224]
[1726805667237,1.4102,146.13,146.07,3.4224]
[1726805667436,1.4102,146.13,146.03,26.32]
[1726805667437,4.8314,146.13,146.08,3.422]
[1726805667642,1.4102,146.13,146.03,26.32]
[1726805668542,3.4217,146.11,146.07,3.4224]
[1726805668743,3.40388041,146.1,146.07,3.4224]
[1726805669047,3.40388041,146.1,146.08,3.4222]
[1726805669244,6.23409005,146.18,145.97,6.8494]
[1726805669245,6.23409005,146.18,146.05,26.32]
[1726805669443,26.32,146.16,146.05,26.32]
[1726805669741,3.4211,146.13,146.08,3.4221]
[1726805669948,26.32,146.16,146.08,3.4221]
[1726805670245,3.4211,146.13,146.05,26.32]
[1726805670439,26.32,146.16,146.05,26.32]
[1726805670843,1.4503,146.17,146.05,26.32]
[1726805671235,1.4503,146.17,146.03,3.380599]
[1726805671448,1.4503,146.17,146.07,26.32]
[1726805671742,1.4503,146.17,146.1,3.4218]
[1726805671944,1.4503,146.17,146.1,26.32]
[1726805672148,6.23409005,146.18,146.1,26.32]
[1726805672346,3.4208,146.14,146.1,3.4217]
[1726805673045,3.4211,146.13,146.09,3.4219]
[1726805673239,6.23409005,146.18,146.05,26.32]
[1726805673441,26.32,146.16,146.05,26.32]
[1726805673644,3.4213,146.12,146.08,3.422]
[1726805673844,26.32,146.16,146.05,26.32]
[1726805674047,3.4212,146.13,146.08,3.4221]
[1726805674350,3.4212,146.13,146.05,26.32]
[1726805675247,26.32,146.17,146.05,26.32]
[1726805675248,3.4209,146.14,146.05,26.32]
[1726805675447,6.23409005,146.18,146.12,3.4212]
[1726805676248,3.4207,146.15,146.11,3.4214]
[1726805676443,6.23409005,146.18,146.07,26.32]
[1726805676848,3.4209,146.14,146.1,3.4216]
[1726805677649,3.4211,146.13,146.09,3.4219]
[1726805678253,6.23409005,146.18,146.09,3.4219]
[1726805678458,26.32,146.16,146.09,3.4219]
[1726805678662,3.421,146.14,146.05,26.32]
[1726805679356,3.4206,146.16,146.08,26.32]
[1726805679549,32.55409005,146.18,146.08,26.32]
[1726805679550,6.23409005,146.18,146.08,26.32]
[1726805680054,3.4204,146.16,146.08,26.32]
[1726805680653,3.4204,146.16,146.13,3.4209]
[1726805681359,3.4206,146.15,146.12,3.4211]
[1726805682255,6.23409005,146.18,146.11,3.4214]
[1726805682463,6.23409005,146.18,146.08,26.32]
[1726805682464,32.55409005,146.18,146.08,26.32]
[1726805682851,3.4208,146.14,146.11,3.4214]
[1726805683258,32.55409005,146.18,146.08,26.32]
[1726805683654,3.4207,146.15,146.08,26.32]
[1726805684058,3.4207,146.15,146.11,3.4214]
[1726805684253,26.32,146.16,146.05,26.32]
[1726805684764,3.4212,146.13,146.05,26.32]
[1726805685357,26.32,146.16,146.05,26.32]
[1726805685663,32.55409005,146.18,146.07,26.32]
[1726805686766,3.4209,146.14,146.1,3.4216]
[1726805687056,3.4209,146.14,146.07,26.32]
[1726805687976,3.4206,146.15,146.09,16.44]
[1726805688172,16.44,146.17,146.09,16.44]
[1726805688375,6.23409005,146.18,146.12,16.44]
[1726805688771,6.23409005,146.18,146.1,16.44]
[1726805689073,6.23409005,146.18,146.12,3.4212]
[1726805690177,3.4205,146.16,146.1,16.44]
[1726805690381,6.23409005,146.18,146.1,16.44]
[1726805690882,3.4205,146.16,146.1,16.44]
[1726805691483,6.23409005,146.18,146.13,3.4209]
[1726805691484,3.4202,146.17,146.13,3.4209]
[1726805692871,3.4204,146.16,146.12,3.4212]
[1726805693078,22.67409005,146.18,146.08,16.44]
[1726805693480,3.4204,146.16,146.12,3.4212]
[1726805693679,3.4204,146.16,146.08,16.44]
[1726805694084,3.4206,146.15,146.08,16.44]
[1726805694380,22.67409005,146.18,146.08,16.44]
[1726805694582,3.4205,146.16,146.12,3.4211]
[1726805694780,22.67409005,146.18,146.08,16.44]
[1726805694986,16.44,146.17,146.08,16.44]
[1726805695185,3.4207,146.15,146.08,16.44]
[1726805695886,16.44,146.17,146.08,16.44]
[1726805696383,3.4205,146.16,146.08,16.44]
[1726805696776,3.4205,146.16,146.11,3.4214]
[1726805696777,16.44,146.16,146.11,3.4214]
[1726805697389,3.421,146.14,146.11,3.4214]
[1726805697786,6.23409005,146.18,146.1,3.4216]
[1726805697982,3.4209,146.14,146.07,16.44]
[1726805698185,16.44,146.15,146.07,16.44]
[1726805698385,16.44,146.15,146.1,3.4216]
[1726805698787,3.4211,146.13,146.1,3.4216]
[1726805699286,16.44,146.11,145.99,136.9]
[1726805699483,16.44,146.11,146.03,16.44]
[1726805699877,3.4216,146.11,146.03,16.44]
[1726805700278,16.44,146.12,146.03,16.44]
[1726805700478,16.44,146.08,145.99,16.44]
[1726805700681,19.77974287,146.08,145.99,16.44]
[1726805700891,3.33974287,146.08,146.05,3.4227]
[1726805701187,1.3735,146.1,145.94,67.74846504]
[1726805701377,4.79849979,146.1,146.02,16.44]
[1726805701581,1.3735,146.1,146.02,16.44]
[1726805701788,4.7953,146.1,146.06,3.4227]
[1726805701993,4.7953,146.1,146.02,16.44]
[1726805702282,3.4226,146.07,146.0,16.44]
[1726805702486,16.44,146.09,146.0,16.44]
[1726805702687,4.80123897,146.1,146.04,16.44]
[1726805702890,3.42773897,146.1,146.07,16.44]
[1726805703285,19.2743,146.17,146.07,16.44]
[1726805703483,16.44,146.15,146.06,16.44]
[1726805704082,16.44,146.15,146.09,3.422]
[1726805704288,19.2743,146.17,146.07,16.44]
[1726805704494,2.8343,146.17,146.1,16.44]
[1726805704683,2.8343,146.17,146.11,16.44]
[1726805704885,2.8343,146.17,146.09,16.44]
[1726805705585,2.8343,146.17,146.11,16.44]
[1726805705986,6.2545,146.17,146.09,26.3]
[1726805706486,2.8343,146.17,146.09,26.3]
[1726805707292,1.3686,146.22,146.13,26.3]
[1726805708292,27.6686,146.22,146.03,10.25504769]
[1726805708587,27.6686,146.22,146.13,26.3]
[1726805708792,1.3686,146.22,146.13,26.3]
[1726805709094,1.3686,146.22,146.15,26.3]
[1726805709289,3.4192,146.21,146.18,3.4198]
[1726805709585,1.3686,146.22,146.15,26.3]
[1726805709791,1.3686,146.22,146.13,26.3]
[1726805709792,3.4194,146.21,146.13,26.3]
[1726805709985,1.3686,146.22,146.13,26.3]
[1726805710386,1.3686,146.22,146.03,3.40854769]
[1726805710387,26.3,146.19,146.03,3.40854769]
[1726805710582,2.8183,146.18,146.0,136.94]
[1726805710784,26.3,146.15,146.04,26.3]
[1726805710987,3.4208,146.14,146.1,3.4216]
[1726805711184,3.4780859,146.13,146.04,26.3]
[1726805711386,26.3,146.16,146.04,26.3]
[1726805711589,29.65251211,146.16,146.04,26.3]
[1726805711790,3.35251211,146.16,146.07,26.3]
[1726805711996,3.35319644,146.16,146.05,26.3]
[1726805712187,3.4201,146.18,146.13,3.4209]
[1726805712387,3.4201,146.18,146.07,26.3]
[1726805712793,26.3,146.19,146.07,26.3]
[1726805712993,31.09479233,146.21,146.1,26.3]
[1726805713290,31.09479233,146.21,146.13,3.421]
[1726805713493,31.09479233,146.21,146.1,26.3]
[1726805713995,34.51419233,146.21,146.1,26.3]
[1726805714186,4.79479233,146.21,146.12,26.3]
[1726805714593,4.79479233,146.21,146.14,26.3]
[1726805714896,3.45379233,146.21,146.18,3.4197]
[1726805715087,27.6624,146.24,146.12,26.3]
[1726805715395,3.4196,146.2,146.15,3.4204]
[1726805715596,3.38935231,146.19,146.15,3.4204]
[1726805715799,26.3,146.21,146.15,3.4204]
[1726805716094,29.80707618,146.21,146.15,3.4204]
[1726805716288,3.4198,146.19,146.14,3.4206]
[1726805716484,29.80707618,146.21,146.1,26.3]
[1726805716892,3.4199,146.18,146.1,26.3]
[1726805717498,26.3,146.2,146.08,26.3]
[1726805717693,1.3532,146.19,146.08,26.3]
[1726805718198,1.3532,146.19,146.1,26.3]
[1726805718590,1.3532,146.19,146.15,3.4205]
[1726805718787,26.3,146.2,146.1,26.3]
[1726805718987,3.4199,146.18,146.14,3.4206]
[1726805719190,26.3,146.2,146.1,26.3]
[1726805719390,1.4191,146.19,146.1,26.3]
[1726805719800,3.4202,146.17,146.13,3.4209]
[1726805720494,3.42,146.18,146.13,3.4209]
[1726805720892,3.42,146.18,146.08,26.3]
[1726805720893,3.42,146.18,146.14,3.4208]
[1726805721500,3.4202,146.17,146.13,3.421]
[1726805722192,3.4204,146.16,146.06,26.3]
[1726805722599,29.7202,146.17,146.06,26.3]
[1726805723301,29.7202,146.17,146.13,3.4209]
[1726805723800,3.4202,146.17,146.13,3.4209]
[1726805724291,4.747,146.17,146.13,3.4209]
[1726805725093,4.747,146.17,146.14,3.4208]
[1726805725292,1.3268,146.17,146.08,26.3]
[1726805725694,1.3268,146.17,146.15,3.4204]
[1726805727098,1.3268,146.17,146.04,6.846]
[1726805727299,16.43,146.14,146.06,16.43]
[1726805727702,3.4212,146.13,146.06,16.43]
[1726805727895,6.76252793,146.13,146.06,16.43]
[1726805728097,6.76252793,146.13,146.1,3.4216]
[1726805728298,3.34132793,146.13,146.1,3.4216]
[1726805728499,16.43,146.14,146.06,16.43]
[1726805728697,3.36391603,146.13,146.12,3.4211]
[1726805728899,16.43,146.16,146.12,3.4211]
[1726805729798,16.43,146.16,146.1,3.4217]
[1726805730001,16.43,146.16,146.0,140.40645236]
[1726805730002,16.43,146.12,146.0,3.46645236]
[1726805730310,16.43,146.1,146.02,16.43]
[1726805730598,16.43,146.12,146.02,16.43]
[1726805730903,19.79129604,146.12,146.04,16.43]
[1726805731397,16.43,146.1,146.0,16.43]
[1726805731806,3.35376564,146.09,146.02,16.43]
[1726805732004,4.1622,146.11,145.99,16.43]
[1726805732203,3.4225,146.07,145.99,16.43]
[1726805732501,6.92276612,146.07,145.99,16.43]
[1726805732696,6.92276612,146.07,145.85,3.46405722]
[1726805732697,3.50026612,146.07,145.85,3.46405722]
[1726805732902,3.50026612,146.07,145.83,136.92]
[1726805732903,16.43,146.04,145.95,16.43]
[1726805733598,19.8263585,146.04,146.0,3.4239]
[1726805734094,3.49704716,146.05,145.97,16.43]
[1726805734301,16.43,146.07,145.97,16.43]
[1726805734500,4.1622,146.11,146.01,16.43]
[1726805734501,16.43,146.09,146.01,16.43]
[1726805734807,23.96492749,146.11,146.01,16.43]
[1726805735303,23.96492749,146.11,146.04,3.4232]
[1726805735606,16.43,146.09,146.04,3.4232]
[1726805735803,6.15072749,146.11,146.04,3.4232]
[1726805736006,32.44072749,146.11,145.99,26.29]
[1726805736807,3.4223,146.08,145.99,26.29]
[1726805737303,32.44072749,146.11,145.97,26.29]
[1726805737304,6.15072749,146.11,145.97,26.29]
[1726805737510,3.4226,146.07,145.97,26.29]
[1726805737806,6.15072749,146.11,145.97,26.29]
[1726805738002,26.29,146.1,145.97,26.29]
[1726805738216,6.15072749,146.11,145.99,26.29]
[1726805738802,32.44072749,146.11,145.99,26.29]
[1726805739203,3.4219,146.1,146.06,3.4225]
[1726805740508,6.15072749,146.11,146.06,3.4225]
[1726805740707,6.15072749,146.11,146.07,3.4224]
[1726805740904,6.15072749,146.11,146.02,26.29]
[1726805741200,6.15072749,146.11,146.08,3.422]
[1726805741905,6.15072749,146.11,146.07,3.4224]
[1726805742213,9.57242749,146.11,146.07,3.4224]
[1726805742408,6.15072749,146.11,145.96,6.8501]
[1726805742705,6.15072749,146.11,146.01,26.29]
[1726805742913,9.57242749,146.11,146.07,3.4222]
[1726805743109,6.15072749,146.11,146.01,26.29]
[1726805743309,2.778,146.11,146.03,26.29]
[1726805743703,26.29,146.18,146.05,26.29]
[1726805743902,4.0433,146.18,146.14,3.4206]
[1726805744511,4.0433,146.18,146.08,26.29]
[1726805745012,3.36527838,146.21,146.17,3.42]
[1726805745211,26.29,146.23,146.17,3.42]
[1726805745413,3.4194,146.21,146.17,3.42]
[1726805745715,3.48684481,146.21,146.17,3.42]
[1726805745918,26.29,146.23,146.17,3.42]
[1726805746219,29.75782566,146.23,146.17,3.42]
[1726805746714,29.75782566,146.23,146.18,3.4197]
[1726805747016,4.0608,146.26,146.15,26.29]
[1726805747518,7.49680133,146.26,146.15,26.29]
[1726805747913,10.91490133,146.26,146.21,3.419]
[1726805748314,7.49680133,146.26,146.17,26.29]
[1726805748515,10.91480133,146.26,146.17,26.29]
[1726805748714,7.49680133,146.26,146.17,26.29]
[1726805749121,7.49680133,146.26,146.14,26.29]
[1726805749716,3.4186,146.24,146.14,26.29]
[1726805750216,3.4186,146.24,146.2,3.4192]
[1726805750521,7.49680133,146.26,146.17,26.29]
[1726805751520,1.4,146.26,146.17,26.29]
[1726805751720,3.4176,146.28,146.19,26.29]
[1726805751922,26.29,146.29,146.19,26.29]
[1726805752120,3.4178,146.27,146.19,26.29]
[1726805752321,3.4894232,146.27,146.24,3.4184]
[1726805752522,29.7073,146.29,146.19,26.29]
[1726805752819,3.4173,146.29,146.19,26.29]
[1726805753018,3.36047667,146.28,146.19,26.29]
[1726805753419,3.36047667,146.28,146.26,3.4179]
[1726805753617,3.4172,146.3,146.26,3.4179]
[1726805754026,3.4172,146.3,146.27,3.4178]
[1726805754528,3.4172,146.3,146.26,3.4179]
[1726805754730,3.4174,146.29,146.26,3.4179]
[1726805755027,26.29,146.32,146.21,26.29]
[1726805755223,4.2434,146.33,146.24,26.29]
[1726805755422,7.6599,146.33,146.24,26.29]
[1726805755824,4.2434,146.33,146.3,3.4169]
[1726805756020,2.8868,146.33,146.24,26.29]
[1726805756324,3.36358635,146.36,146.26,26.29]
[1726805756625,6.1759,146.37,146.28,26.29]
[1726805756928,2.7605,146.37,146.26,26.29]
[1726805757123,26.29,146.36,146.26,26.29]
[1726805757522,3.4161,146.35,146.26,26.29]
[1726805757719,6.89294262,146.35,146.26,26.29]
[1726805757925,3.4161,146.35,146.3,3.4169]
[1726805758224,3.4161,146.35,146.26,26.29]
[1726805758730,3.38178339,146.34,146.26,26.29]
[1726805758928,26.29,146.36,146.26,26.29]
[1726805759425,3.42279772,146.35,146.26,26.29]
[1726805760027,26.29,146.36,146.26,26.29]
[1726805760427,26.29,146.35,146.24,26.29]
[1726805760617,27.6082,146.35,146.21,26.29]
[1726805761017,3.417,146.31,146.21,26.29]
[1726805761226,26.29,146.33,146.21,26.29]
[1726805761424,3.4169,146.31,146.21,26.29]
[1726805761929,26.29,146.33,146.27,3.4178]
[1726805762222,3.417,146.31,146.27,3.4178]
[1726805762427,30.95817951,146.35,146.24,26.29]
[1726805762725,4.66817951,146.35,146.26,26.29]
[1726805763118,4.66817951,146.35,146.24,26.29]
[1726805763531,3.4165,146.33,146.29,3.4172]
[1726805764228,3.4167,146.32,146.29,3.4172]
[1726805764421,4.66817951,146.35,146.24,26.29]
[1726805764626,4.66817951,146.35,146.26,26.29]
[1726805764816,8.08417951,146.35,146.26,26.29]
[1726805765018,8.08417951,146.35,146.31,3.4166]
[1726805765221,4.66817951,146.35,146.26,26.29]
[1726805765818,8.08407951,146.35,146.26,26.29]
[1726805766331,4.66817951,146.35,146.32,3.4165]
[1726805766526,4.66817951,146.35,146.24,26.29]